fUST/lending_fUST_20250704
["ID","MTS","AMOUNT","RATE_DAILY","PERIOD"]
[369383096,1751562641718,-460.0,0.00016986,2]
[369383098,1751562641730,-460.0,0.00016986,2]
[369383100,1751562641740,-3909.92,0.00016986,2]
[369383102,1751562641750,-460.0,0.00016986,2]
[369383104,1751562641759,-460.0,0.00016986,2]
[369383106,1751562641770,-460.0,0.00016986,2]
[369383108,1751562641779,-1107.88,0.00016986,2]
[369383110,1751562641788,-460.0,0.00016986,2]
[369383112,1751562641798,-460.0,0.00016986,2]
[369383114,1751562641807,-460.0,0.00016986,2]
[369383116,1751562641816,-460.0,0.00016986,2]
[369383118,1751562641825,-460.0,0.00016986,2]
[369383120,1751562641834,-460.0,0.00016986,2]
[369383122,1751562641843,-460.0,0.00016986,2]
[369383124,1751562641852,-2575.35,0.00016986,2]
[369383126,1751562641862,-460.0,0.00016986,2]
[369383128,1751562641871,-2549.45,0.00016986,2]
[369383130,1751562641880,-460.0,0.00016986,2]
[369383132,1751562641889,-460.0,0.00016986,2]
[369383134,1751562641898,-460.0,0.00016986,2]
[369383136,1751562641907,-460.0,0.00016986,2]
[369383138,1751562641917,-460.0,0.00016986,2]
[369383140,1751562641926,-296.56,0.00016986,2]
[369383142,1751562641935,-460.0,0.00016986,2]
[369383144,1751562641944,-1158.99,0.00016986,2]
[369383146,1751562641954,-460.0,0.00016986,2]
[369383162,1751562642075,-542.05,0.00016986,2]
[369383164,1751562642102,-287.84,0.00016986,2]
[369383166,1751562642112,-992.72,0.00016986,2]
[369383168,1751562642121,-460.0,0.00016986,2]
[369383170,1751562642136,-460.0,0.00016986,2]
[369383172,1751562642145,-2475.14,0.00016986,2]
[369383174,1751562642155,-982.65,0.00016986,2]
[369383176,1751562642165,-460.0,0.00016986,2]
[369383178,1751562642175,-460.0,0.00016986,2]
[369383180,1751562642185,-460.0,0.00016986,2]
[369383182,1751562642194,-460.0,0.00016986,2]
[369383184,1751562642203,-460.0,0.00016986,2]
[369383186,1751562642212,-2775.08,0.00016986,2]
[369383188,1751562642222,-2110.18,0.00016986,2]
[369383190,1751562642231,-460.0,0.00016986,2]
[369383192,1751562642241,-1040.84,0.00016986,2]
[369383194,1751562642250,-460.0,0.00016986,2]
[369383196,1751562642259,-460.0,0.00016986,2]
[369383199,1751562642270,-460.0,0.00016986,2]
[369383201,1751562642279,-460.0,0.00016986,2]
[369383203,1751562642288,-573.89,0.00016986,2]
[369383205,1751562642297,-460.0,0.00016986,2]
[369383207,1751562642306,-460.0,0.00016986,2]
[369383209,1751562642315,-460.0,0.00016986,2]
[369383211,1751562642324,-1705.66,0.00016986,2]
[369383213,1751562642333,-460.0,0.00016986,2]
[369383215,1751562642343,-460.0,0.00016986,2]
[369383217,1751562642354,-817.79,0.00016986,2]
[369383218,1751562642364,-460.0,0.00016986,2]
[369383219,1751562642373,-460.0,0.00016986,2]
[369383220,1751562642382,-460.0,0.00016986,2]
[369383221,1751562642391,-460.0,0.00016986,2]
[369383222,1751562642401,-460.0,0.00016986,2]
[369383223,1751562642410,-460.0,0.00016986,2]
[369383224,1751562642419,-460.0,0.00016986,2]
[369383225,1751562642429,-460.0,0.00016986,2]
[369383226,1751562642438,-460.0,0.00016986,2]
[369383227,1751562642447,-460.0,0.00016986,2]
[369383228,1751562642456,-460.0,0.00016986,2]
[369383229,1751562642465,-460.0,0.00016986,2]
[369383230,1751562642475,-460.0,0.00016986,2]
[369383231,1751562642484,-460.0,0.00016986,2]
[369383232,1751562642493,-2092.36,0.00016986,2]
[369383233,1751562642503,-460.0,0.00016986,2]
[369383234,1751562642512,-678.46,0.00016986,2]
[369383235,1751562642521,-3743.2,0.00016986,2]
[369383236,1751562642530,-460.0,0.00016986,2]
[369383237,1751562642540,-460.0,0.00016986,2]
[369383238,1751562642548,-854.62,0.00016986,2]
[369383239,1751562642557,-460.0,0.00016986,2]
[369383240,1751562642567,-460.0,0.00016986,2]
[369383241,1751562642576,-460.0,0.00016986,2]
[369383242,1751562642586,-460.0,0.00016986,2]
[369383243,1751562642595,-460.0,0.00016986,2]
[369383244,1751562642604,-460.0,0.00016986,2]
[369383246,1751562642614,-460.0,0.00016986,2]
[369383247,1751562642624,-856.3,0.00016986,2]
[369383249,1751562642633,-1224.49,0.00016986,2]
[369383251,1751562642642,-978.4,0.00016986,2]
[369383253,1751562642651,-460.0,0.00016986,2]
[369383255,1751562642660,-460.0,0.00016986,2]
[369383258,1751562642669,-1544.58,0.00016986,2]
[369383260,1751562642679,-172.19212022,0.00017028,2]
[369383263,1751562642689,-500.0,0.00017028,2]
[369383265,1751562642698,-500.0,0.00017028,2]
[369383267,1751562642707,-500.0,0.00017028,2]
[369383269,1751562642716,-1446.6854973,0.0001716,2]
[369383271,1751562642729,-151.0,0.000172,2]
[369383273,1751562642738,-579.32,0.0001726,2]
[369383275,1751562642747,-460.0,0.0001726,2]
[369383277,1751562642756,-460.0,0.0001726,2]
[369383279,1751562642767,-460.0,0.0001726,2]
[369383281,1751562642776,-362.78262875,0.0001726,2]
[369383283,1751562642785,-460.0,0.0001726,2]
[369383285,1751562642795,-460.0,0.0001726,2]
[369383287,1751562642805,-609.36,0.0001726,2]
[369383289,1751562642815,-426.50838116,0.0001726,2]
[369383291,1751562642825,-3909.92,0.0001726,2]
[369383293,1751562642835,-460.0,0.0001726,2]
[369383295,1751562642844,-460.0,0.0001726,2]
[369383297,1751562642853,-460.0,0.0001726,2]
[369383299,1751562642863,-1107.88,0.0001726,2]
[369383301,1751562642872,-460.0,0.0001726,2]
[369383303,1751562642881,-460.0,0.0001726,2]
[369383305,1751562642890,-460.0,0.0001726,2]
[369383307,1751562642900,-460.0,0.0001726,2]
[369383309,1751562642909,-460.0,0.0001726,2]
[369383311,1751562642918,-224.14749735,0.0001726,2]
[369383313,1751562642927,-460.0,0.0001726,2]
[369383315,1751562642937,-2575.35,0.0001726,2]
[369383317,1751562642945,-460.0,0.0001726,2]
[369383319,1751562642955,-2549.45,0.0001726,2]
[369383321,1751562642964,-460.0,0.0001726,2]
[369383323,1751562642973,-460.0,0.0001726,2]
[369383325,1751562642983,-460.0,0.0001726,2]
[369383326,1751562642992,-474.95382324,0.0001726,2]
[369383328,1751562643001,-460.0,0.0001726,2]
[369383330,1751562643011,-460.0,0.0001726,2]
[369383333,1751562643020,-1158.99,0.0001726,2]
[369383335,1751562643030,-992.72,0.0001726,2]
[369383337,1751562643039,-460.0,0.0001726,2]
[369383339,1751562643049,-460.0,0.0001726,2]
[369383341,1751562643059,-2475.14,0.0001726,2]
[369383343,1751562643069,-982.65,0.0001726,2]
[369383345,1751562643078,-460.0,0.0001726,2]
[369383346,1751562643087,-460.0,0.0001726,2]
[369383349,1751562643097,-460.0,0.0001726,2]
[369383351,1751562643107,-460.0,0.0001726,2]
[369383353,1751562643116,-460.0,0.0001726,2]
[369383355,1751562643125,-2775.08,0.0001726,2]
[369383357,1751562643135,-2110.18,0.0001726,2]
[369383358,1751562643144,-460.0,0.0001726,2]
[369383361,1751562643153,-1040.84,0.0001726,2]
[369383362,1751562643163,-460.0,0.0001726,2]
[369383365,1751562643173,-460.0,0.0001726,2]
[369383367,1751562643183,-460.0,0.0001726,2]
[369383369,1751562643192,-460.0,0.0001726,2]
[369383371,1751562643201,-573.89,0.0001726,2]
[369383373,1751562643211,-460.0,0.0001726,2]
[369383374,1751562643220,-1705.66,0.0001726,2]
[369383376,1751562643230,-460.0,0.0001726,2]
[369383378,1751562643239,-366.64,0.0001726,2]
[369383380,1751562643248,-460.0,0.0001726,2]
[369383382,1751562643257,-817.79,0.0001726,2]
[369383384,1751562643266,-460.0,0.0001726,2]
[369383386,1751562643276,-305.2,0.0001726,2]
[369383388,1751562643285,-460.0,0.0001726,2]
[369383390,1751562643294,-460.0,0.0001726,2]
[369383392,1751562643305,-460.0,0.0001726,2]
[369383394,1751562643314,-460.0,0.0001726,2]
[369383396,1751562643323,-460.0,0.0001726,2]
[369383398,1751562643332,-460.0,0.0001726,2]
[369383400,1751562643341,-460.0,0.0001726,2]
[369383402,1751562643351,-460.0,0.0001726,2]
[369383404,1751562643360,-460.0,0.0001726,2]
[369383406,1751562643370,-460.0,0.0001726,2]
[369383408,1751562643379,-460.0,0.0001726,2]
[369383410,1751562643388,-460.0,0.0001726,2]
[369383412,1751562643397,-2092.36,0.0001726,2]
[369383414,1751562643406,-460.0,0.0001726,2]
[369383416,1751562643415,-678.46,0.0001726,2]
[369383418,1751562643424,-3743.2,0.0001726,2]
[369383420,1751562643433,-460.0,0.0001726,2]
[369383422,1751562643443,-460.0,0.0001726,2]
[369383424,1751562643452,-854.62,0.0001726,2]
[369383426,1751562643462,-460.0,0.0001726,2]
[369383429,1751562643471,-460.0,0.0001726,2]
[369383430,1751562643481,-460.0,0.0001726,2]
[369383432,1751562643490,-285.89751404,0.0001726,2]
[369383434,1751562643499,-460.0,0.0001726,2]
[369383436,1751562643509,-460.0,0.0001726,2]
[369383438,1751562643518,-460.0,0.0001726,2]
[369383440,1751562643527,-856.3,0.0001726,2]
[369383442,1751562643537,-1224.49,0.0001726,2]
[369383444,1751562643546,-978.4,0.0001726,2]
[369383446,1751562643555,-460.0,0.0001726,2]
[369383448,1751562643564,-1544.58,0.0001726,2]
[369383450,1751562643573,-250.0,0.0001727,2]
[369383452,1751562643582,-250.0,0.0001731,2]
[369383454,1751562643592,-250.0,0.00017349,2]
[369383456,1751562643601,-250.0,0.00017389,2]
[369383458,1751562643610,-250.0,0.00017428,2]
[369383460,1751562643619,-500.0,0.00017437,2]
[369383462,1751562643629,-1000.0,0.00017453,2]
[369383464,1751562643638,-250.0,0.00017468,2]
[369383467,1751562643648,-1022.31,0.000175,2]
[369383469,1751562643657,-250.0,0.00017507,2]
[369383471,1751562643667,-1291.77,0.00017533,2]
[369383473,1751562643676,-213.69126395,0.00017534,2]
[369383475,1751562643690,-460.0,0.00017534,2]
[369383477,1751562643699,-460.0,0.00017534,2]
[369383479,1751562643708,-460.0,0.00017534,2]
[369383481,1751562643718,-460.0,0.00017534,2]
[369383483,1751562643731,-3909.92,0.00017534,2]
[369383485,1751562643740,-460.0,0.00017534,2]
[369383487,1751562643749,-460.0,0.00017534,2]
[369383489,1751562643759,-460.0,0.00017534,2]
[369383491,1751562643770,-1107.88,0.00017534,2]
[369383493,1751562643780,-460.0,0.00017534,2]
[369383495,1751562643789,-460.0,0.00017534,2]
[369383497,1751562643800,-460.0,0.00017534,2]
[369383499,1751562643810,-460.0,0.00017534,2]
[369383502,1751562643822,-460.0,0.00017534,2]
[369383504,1751562643832,-460.0,0.00017534,2]
[369383506,1751562643841,-2575.35,0.00017534,2]
[369383508,1751562643851,-460.0,0.00017534,2]
[369383510,1751562643860,-2549.45,0.00017534,2]
[369383512,1751562643869,-460.0,0.00017534,2]
[369383514,1751562643878,-460.0,0.00017534,2]
[369383516,1751562643887,-460.0,0.00017534,2]
[369383518,1751562643897,-460.0,0.00017534,2]
[369383520,1751562643906,-460.0,0.00017534,2]
[369383522,1751562643915,-1158.99,0.00017534,2]
[369383524,1751562643925,-992.72,0.00017534,2]
[369383526,1751562643935,-584.96274023,0.00017534,2]
[369383528,1751562643944,-2475.14,0.00017534,2]
[369383530,1751562643954,-982.65,0.00017534,2]
[369383532,1751562643963,-460.0,0.00017534,2]
[369383534,1751562643972,-460.0,0.00017534,2]
[369383536,1751562643981,-460.0,0.00017534,2]
[369383537,1751562643991,-460.0,0.00017534,2]
[369383539,1751562644000,-460.0,0.00017534,2]
[369383541,1751562644010,-2775.08,0.00017534,2]
[369383543,1751562644020,-2110.18,0.00017534,2]
[369383545,1751562644029,-460.0,0.00017534,2]
[369383547,1751562644039,-1040.84,0.00017534,2]
[369383550,1751562644049,-226.85241701,0.00017534,2]
[369383551,1751562644059,-460.0,0.00017534,2]
[369383553,1751562644068,-460.0,0.00017534,2]
[369383555,1751562644078,-460.0,0.00017534,2]
[369383557,1751562644088,-573.89,0.00017534,2]
[369383560,1751562644098,-460.0,0.00017534,2]
[369383562,1751562644107,-1705.66,0.00017534,2]
[369383564,1751562644117,-460.0,0.00017534,2]
[369383566,1751562644128,-460.0,0.00017534,2]
[369383568,1751562644138,-460.0,0.00017534,2]
[369383569,1751562644148,-817.79,0.00017534,2]
[369383572,1751562644158,-460.0,0.00017534,2]
[369383573,1751562644167,-460.0,0.00017534,2]
[369383575,1751562644176,-460.0,0.00017534,2]
[369383577,1751562644185,-460.0,0.00017534,2]
[369383579,1751562644195,-460.0,0.00017534,2]
[369383581,1751562644203,-460.0,0.00017534,2]
[369383583,1751562644213,-460.0,0.00017534,2]
[369383585,1751562644222,-460.0,0.00017534,2]
[369383587,1751562644231,-460.0,0.00017534,2]
[369383589,1751562644240,-157.85461952,0.00017534,2]
[369383591,1751562644249,-460.0,0.00017534,2]
[369383593,1751562644258,-460.0,0.00017534,2]
[369383595,1751562644268,-2092.36,0.00017534,2]
[369383597,1751562644278,-460.0,0.00017534,2]
[369383599,1751562644287,-678.46,0.00017534,2]
[369383601,1751562644296,-3743.2,0.00017534,2]
[369383603,1751562644305,-460.0,0.00017534,2]
[369383605,1751562644315,-460.0,0.00017534,2]
[369383607,1751562644324,-854.62,0.00017534,2]
[369383609,1751562644333,-460.0,0.00017534,2]
[369383612,1751562644344,-460.0,0.00017534,2]
[369383614,1751562644354,-460.0,0.00017534,2]
[369383616,1751562644363,-460.0,0.00017534,2]
[369383618,1751562644371,-460.0,0.00017534,2]
[369383620,1751562644381,-460.0,0.00017534,2]
[369383622,1751562644391,-856.3,0.00017534,2]
[369383623,1751562644400,-1224.49,0.00017534,2]
[369383625,1751562644410,-978.4,0.00017534,2]
[369383627,1751562644419,-460.0,0.00017534,2]
[369383629,1751562644428,-1544.58,0.00017534,2]
[369383631,1751562644437,-250.0,0.00017547,2]
[369383633,1751562644446,-1000.0,0.00017576,2]
[369383635,1751562644456,-1000.0,0.00017576,2]
[369383638,1751562644466,-250.0,0.00017586,2]
[369383640,1751562644475,-250.0,0.00017626,2]
[369383641,1751562644484,-250.0,0.00017665,2]
[369383643,1751562644493,-250.0,0.00017705,2]
[369383645,1751562644502,-250.0,0.00017744,2]
[369383647,1751562644511,-250.0,0.00017784,2]
[369383649,1751562644521,-151.0,0.000178,2]
[369383651,1751562644530,-460.0,0.00017808,2]
[369383653,1751562644539,-543.08406124,0.00017808,2]
[369383655,1751562644548,-460.0,0.00017808,2]
[369383657,1751562644558,-460.0,0.00017808,2]
[369383659,1751562644567,-3909.92,0.00017808,2]
[369383661,1751562644576,-174.88,0.00017808,2]
[369383663,1751562644585,-460.0,0.00017808,2]
[369383666,1751562644596,-460.0,0.00017808,2]
[369383668,1751562644605,-1107.88,0.00017808,2]
[369383670,1751562644614,-460.0,0.00017808,2]
[369383684,1751562644740,-460.0,0.00017808,2]
[369383686,1751562644750,-460.0,0.00017808,2]
[369383688,1751562644760,-460.0,0.00017808,2]
[369383690,1751562644770,-460.0,0.00017808,2]
[369383692,1751562644779,-460.0,0.00017808,2]
[369383694,1751562644788,-2575.35,0.00017808,2]
[369383696,1751562644798,-497.59685613,0.00017808,2]
[369383698,1751562644807,-2549.45,0.00017808,2]
[369383700,1751562644816,-460.0,0.00017808,2]
[369383702,1751562644826,-460.0,0.00017808,2]
[369383704,1751562644835,-460.0,0.00017808,2]
[369383706,1751562644844,-460.0,0.00017808,2]
[369383708,1751562644853,-460.0,0.00017808,2]
[369383710,1751562644863,-1158.99,0.00017808,2]
[369383712,1751562644872,-992.72,0.00017808,2]
[369383714,1751562644881,-2475.14,0.00017808,2]
[369383716,1751562644891,-982.65,0.00017808,2]
[369383717,1751562644900,-460.0,0.00017808,2]
[369383718,1751562644910,-460.0,0.00017808,2]
[369383719,1751562644919,-460.0,0.00017808,2]
[369383720,1751562644929,-460.0,0.00017808,2]
[369383721,1751562644938,-460.0,0.00017808,2]
[369383722,1751562644948,-2775.08,0.00017808,2]
[369383723,1751562644957,-2110.18,0.00017808,2]
[369383724,1751562644966,-460.0,0.00017808,2]
[369383725,1751562644976,-1040.84,0.00017808,2]
[369383726,1751562644985,-460.0,0.00017808,2]
[369383728,1751562644994,-489.69,0.00017808,2]
[369383730,1751562645003,-460.0,0.00017808,2]
[369383732,1751562645013,-573.89,0.00017808,2]
[369383734,1751562645023,-460.0,0.00017808,2]
[369383736,1751562645032,-1705.66,0.00017808,2]
[369383738,1751562645042,-460.0,0.00017808,2]
[369383740,1751562645051,-460.0,0.00017808,2]
[369383742,1751562645061,-460.0,0.00017808,2]
[369383744,1751562645069,-817.79,0.00017808,2]
[369383746,1751562645079,-460.0,0.00017808,2]
[369383748,1751562645090,-460.0,0.00017808,2]
[369383750,1751562645100,-460.0,0.00017808,2]
[369383753,1751562645109,-460.0,0.00017808,2]
[369383755,1751562645119,-460.0,0.00017808,2]
[369383757,1751562645128,-460.0,0.00017808,2]
[369383759,1751562645137,-460.0,0.00017808,2]
[369383761,1751562645146,-460.0,0.00017808,2]
[369383763,1751562645156,-460.0,0.00017808,2]
[369383765,1751562645165,-460.0,0.00017808,2]
[369383767,1751562645175,-460.0,0.00017808,2]
[369383769,1751562645184,-2092.36,0.00017808,2]
[369383771,1751562645193,-460.0,0.00017808,2]
[369383773,1751562645202,-678.46,0.00017808,2]
[369383775,1751562645211,-3743.2,0.00017808,2]
[369383777,1751562645220,-460.0,0.00017808,2]
[369383779,1751562645230,-460.0,0.00017808,2]
[369383781,1751562645239,-854.62,0.00017808,2]
[369383783,1751562645249,-460.0,0.00017808,2]
[369383785,1751562645258,-460.0,0.00017808,2]
[369383787,1751562645268,-460.0,0.00017808,2]
[369383789,1751562645277,-460.0,0.00017808,2]
[369383791,1751562645287,-460.0,0.00017808,2]
[369383793,1751562645296,-460.0,0.00017808,2]
[369383795,1751562645305,-856.3,0.00017808,2]
[369383797,1751562645315,-1224.49,0.00017808,2]
[369383799,1751562645324,-978.4,0.00017808,2]
[369383801,1751562645333,-460.0,0.00017808,2]
[369383803,1751562645342,-1544.58,0.00017808,2]
[369383805,1751562645351,-250.0,0.00017823,2]
[369383807,1751562645360,-250.0,0.00017863,2]
[369383809,1751562645370,-250.0,0.00017902,2]
[369383811,1751562645379,-250.0,0.00017942,2]
[369383813,1751562645388,-250.0,0.00017982,2]
[369383815,1751562645398,-1500.0,0.00018001,2]
[369383817,1751562645407,-250.0,0.00018021,2]
[369383819,1751562645416,-460.0,0.00018082,2]
[369383821,1751562645427,-460.0,0.00018082,2]
[369383823,1751562645437,-460.0,0.00018082,2]
[369383825,1751562645446,-3909.92,0.00018082,2]
[369383827,1751562645456,-460.0,0.00018082,2]
[369383829,1751562645465,-460.0,0.00018082,2]
[369383832,1751562645474,-1107.88,0.00018082,2]
[369383834,1751562645484,-460.0,0.00018082,2]
[369383836,1751562645494,-460.0,0.00018082,2]
[369383838,1751562645503,-460.0,0.00018082,2]
[369383840,1751562645512,-460.0,0.00018082,2]
[369383842,1751562645521,-460.0,0.00018082,2]
[369383844,1751562645531,-460.0,0.00018082,2]
[369383846,1751562645540,-2575.35,0.00018082,2]
[369383848,1751562645549,-2549.45,0.00018082,2]
[369383850,1751562645558,-460.0,0.00018082,2]
[369383852,1751562645567,-460.0,0.00018082,2]
[369383854,1751562645577,-460.0,0.00018082,2]
[369383856,1751562645586,-1158.99,0.00018082,2]
[369383858,1751562645595,-992.72,0.00018082,2]
[369383860,1751562645605,-2475.14,0.00018082,2]
[369383862,1751562645613,-982.65,0.00018082,2]
[369383864,1751562645622,-607.48,0.00018082,2]
[369383866,1751562645631,-460.0,0.00018082,2]
[369383868,1751562645640,-460.0,0.00018082,2]
[369383870,1751562645649,-460.0,0.00018082,2]
[369383872,1751562645658,-460.0,0.00018082,2]
[369383874,1751562645667,-2775.08,0.00018082,2]
[369383876,1751562645676,-2110.18,0.00018082,2]
[369383878,1751562645685,-460.0,0.00018082,2]
[369383880,1751562645694,-1040.84,0.00018082,2]
[369383882,1751562645703,-460.0,0.00018082,2]
[369383884,1751562645713,-460.0,0.00018082,2]
[369383886,1751562645724,-573.89,0.00018082,2]
[369383888,1751562645734,-460.0,0.00018082,2]
[369383890,1751562645743,-1705.66,0.00018082,2]
[369383892,1751562645752,-562.870575,0.00018082,2]
[369383894,1751562645762,-164.05406319,0.00018082,2]
[369383896,1751562645771,-460.0,0.00018082,2]
[369383898,1751562645780,-817.79,0.00018082,2]
[369383900,1751562645789,-227.02,0.00018082,2]
[369383902,1751562645800,-460.0,0.00018082,2]
[369383904,1751562645810,-460.0,0.00018082,2]
[369383906,1751562645820,-460.0,0.00018082,2]
[369383908,1751562645829,-460.0,0.00018082,2]
[369383910,1751562645838,-460.0,0.00018082,2]
[369383912,1751562645847,-460.0,0.00018082,2]
[369383914,1751562645857,-460.0,0.00018082,2]
[369383916,1751562645865,-460.0,0.00018082,2]
[369383918,1751562645874,-460.0,0.00018082,2]
[369383920,1751562645884,-460.0,0.00018082,2]
[369383922,1751562645893,-2092.36,0.00018082,2]
[369383924,1751562645902,-460.0,0.00018082,2]
[369383926,1751562645911,-678.46,0.00018082,2]
[369383928,1751562645921,-3743.2,0.00018082,2]
[369383930,1751562645930,-460.0,0.00018082,2]
[369383932,1751562645939,-460.0,0.00018082,2]
[369383934,1751562645948,-854.62,0.00018082,2]
[369383936,1751562645958,-460.0,0.00018082,2]
[369383938,1751562645967,-460.0,0.00018082,2]
[369383940,1751562645976,-460.0,0.00018082,2]
[369383942,1751562645986,-460.0,0.00018082,2]
[369383943,1751562645995,-460.0,0.00018082,2]
[369383945,1751562646004,-599.8,0.00018082,2]
[369383947,1751562646014,-856.3,0.00018082,2]
[369383949,1751562646023,-1224.49,0.00018082,2]
[369383951,1751562646032,-978.4,0.00018082,2]
[369383953,1751562646042,-460.0,0.00018082,2]
[369383956,1751562646051,-1544.58,0.00018082,2]
[369383958,1751562646061,-1500.0,0.00018124,2]
[369383960,1751562646070,-1500.0,0.00018124,2]
[369383962,1751562646079,-587.0,0.00018226,2]
[369383964,1751562646088,-151.0,0.000183,2]
[369383966,1751562646097,-1446.68549727,0.00018345,2]
[369383967,1751562646107,-1291.77,0.00018355,2]
[369383969,1751562646116,-460.0,0.00018356,2]
[369383972,1751562646126,-460.0,0.00018356,2]
[369383973,1751562646135,-460.0,0.00018356,2]
[369383975,1751562646144,-3909.92,0.00018356,2]
[369383978,1751562646154,-460.0,0.00018356,2]
[369383980,1751562646163,-237.1,0.00018356,2]
[369383982,1751562646173,-1107.88,0.00018356,2]
[369383984,1751562646182,-460.0,0.00018356,2]
[369383986,1751562646191,-428.67,0.00018356,2]
[369383988,1751562646201,-159.71,0.00018356,2]
[369383990,1751562646210,-460.0,0.00018356,2]
[369383992,1751562646219,-460.0,0.00018356,2]
[369383994,1751562646229,-460.0,0.00018356,2]
[369383996,1751562646238,-2575.35,0.00018356,2]
[369383998,1751562646247,-2549.45,0.00018356,2]
[369384000,1751562646256,-460.0,0.00018356,2]
[369384002,1751562646265,-460.0,0.00018356,2]
[369384004,1751562646275,-460.0,0.00018356,2]
[369384006,1751562646286,-1158.99,0.00018356,2]
[369384008,1751562646295,-992.72,0.00018356,2]
[369384009,1751562646306,-2475.14,0.00018356,2]
[369384012,1751562646316,-982.65,0.00018356,2]
[369384014,1751562646325,-460.0,0.00018356,2]
[369384016,1751562646334,-460.0,0.00018356,2]
[369384018,1751562646343,-460.0,0.00018356,2]
[369384020,1751562646352,-460.0,0.00018356,2]
[369384022,1751562646361,-2775.08,0.00018356,2]
[369384023,1751562646372,-2110.18,0.00018356,2]
[369384025,1751562646381,-460.0,0.00018356,2]
[369384028,1751562646391,-1040.84,0.00018356,2]
[369384030,1751562646400,-460.0,0.00018356,2]
[369384032,1751562646409,-460.0,0.00018356,2]
[369384034,1751562646419,-573.89,0.00018356,2]
[369384036,1751562646428,-460.0,0.00018356,2]
[369384038,1751562646438,-1705.66,0.00018356,2]
[369384040,1751562646447,-460.0,0.00018356,2]
[369384042,1751562646456,-817.79,0.00018356,2]
[369384044,1751562646465,-460.0,0.00018356,2]
[369384046,1751562646475,-460.0,0.00018356,2]
[369384048,1751562646484,-460.0,0.00018356,2]
[369384050,1751562646494,-460.0,0.00018356,2]
[369384052,1751562646503,-460.0,0.00018356,2]
[369384054,1751562646512,-460.0,0.00018356,2]
[369384056,1751562646522,-460.0,0.00018356,2]
[369384058,1751562646531,-460.0,0.00018356,2]
[369384060,1751562646541,-2092.36,0.00018356,2]
[369384062,1751562646550,-460.0,0.00018356,2]
[369384064,1751562646560,-678.46,0.00018356,2]
[369384066,1751562646569,-3743.2,0.00018356,2]
[369384068,1751562646578,-460.0,0.00018356,2]
[369384070,1751562646588,-460.0,0.00018356,2]
[369384072,1751562646598,-854.62,0.00018356,2]
[369384074,1751562646607,-460.0,0.00018356,2]
[369384076,1751562646616,-460.0,0.00018356,2]
[369384078,1751562646626,-460.0,0.00018356,2]
[369384080,1751562646635,-321.48,0.00018356,2]
[369384082,1751562646644,-460.0,0.00018356,2]
[369384084,1751562646653,-856.3,0.00018356,2]
[369384086,1751562646663,-1224.49,0.00018356,2]
[369384088,1751562646672,-978.4,0.00018356,2]